Cogmind - Beta 16 @@@ ROGUE MODE // 2025.11.01 @ 19:49:21 Player: GDW Result: Destroyed by as-65750 with Assembled Heavy Rifle Performance ------------- Evolutions (0) 0 Regions Visited (3) 600 Robots Destroyed (26) 130 Value Destroyed (530) 530 Prototype IDs (5) 100 Alien Tech Used (0) 0 Bonus (0) 0 TOTAL SCORE: 1360 Bonus ------- None Cogmind --------- Core Integrity 0/250 Matter 178/300 Energy 90/100 System Corruption 2% Temperature Cool (0) Movement Treading (240) Ox1 Location -10/Exiles Parts ------- > --- POWER (1) -------- (None) > --- PROPULSION (2) --- Light Treads > --- UTILITY (2) ------ Large Storage Unit Seismic Detector > --- WEAPON (2) ------- (None) > --- INVENTORY (15) --- Light Ion Engine Reinforced Deuterium Engine Fission Core Light Treads Wheel Wheel Heat Sink Disposable Heat Sink Improved Targeting Computer Hacking Suite Improved Medium Laser Light Assault Rifle Mining Laser Peak State ------------ > --- POWER ------------ Light Ion Engine > --- PROPULSION ------- Light Treads Light Treads > --- UTILITY ---------- Large Storage Unit Improved Terrain Scanner > --- WEAPON ----------- Improved Medium Laser Light Assault Rifle > --- INVENTORY -------- Light Ion Engine Light Treads Wheel Wheel Small Storage Unit Medium Matter Pod Terrain Scanner Improved Medium Laser Light Assault Rifle Light Assault Rifle Mining Laser [Rating: 12] Favorites ----------- Power Light Ion Engine Engine Light Ion Engine Power Core Light Nuclear Core Propulsion Light Treads Treads Light Treads Utility Large Storage Unit Device Seismic Detector Storage Large Storage Unit Weapon Assault Rifle Energy Gun Improved Medium Laser Ballistic Gun Assault Rifle Launcher Grenade Launcher Special Weapon Mining Laser Build | -11 -10 -10 -10 ------- Run | Yrd Mat Min Exi Slots Evolved . | . . . . Power . | . . . . Propulsion . | . . . . Utility . | . . . . Weapon . | . . . . Parts Attached 26 | 8 13 5 . Power 4 | 1 1 2 . Engine 3 | 1 1 1 . Core 1 | . . 1 . Reactor . | . . . . Propulsion 3 | 2 1 . . Treads 3 | 2 1 . . Leg . | . . . . Wheel . | . . . . Hover . | . . . . Flight . | . . . . Utility 7 | 2 4 1 . Device 5 | 1 3 1 . Storage 2 | 1 1 . . Processor . | . . . . Hackware . | . . . . Protection . | . . . . Artifact . | . . . . Weapon 12 | 3 7 2 . Energy Gun 5 | 2 3 . . Energy Cannon . | . . . . Ballistic Gun 5 | 1 3 1 . Ballistic Cannon . | . . . . Launcher 1 | . . 1 . Special Weapon 1 | . 1 . . Impact Weapon . | . . . . Slashing Weapon . | . . . . Piercing Weapon . | . . . . Special Melee Weapon . | . . . . Unidentified Prototypes 2 | . 2 . . Parts Lost 8 | . 3 . 5 Power 2 | . 1 . 1 Propulsion 1 | . . . 1 Utility 1 | . 1 . . Weapon 4 | . 1 . 3 Highest Loss Streak 5 | . 3 . 5 To Critical Strikes 1 | . . . 1 Average Backups 10 | 1 8 14 14 Power 1 | . . 1 3 Propulsion 2 | 1 2 3 3 Utility 2 | . 2 4 4 Weapon 3 | . 3 5 4 Tool/Special . | . . . . Unused Backups 13 | . 1 . 12 Power 4 | . . . 4 Propulsion 3 | . . . 3 Utility 4 | . 1 . 3 Weapon 2 | . . . 2 Tool/Special . | . . . . Average Slot Usage (%) 96 | . 94 100 96 Engine 8 | . 12 5 . Core 4 | . . 8 13 Treads 27 | . 28 28 27 Device 12 | . 11 14 14 Storage 14 | . 14 14 14 Energy Gun 6 | . 11 . . Ballistic Gun 17 | . 13 22 25 Launcher 1 | . . 3 . Special Weapon 1 | . 1 1 . Peak Build Rating 12 | 7 12 11 12 Average Rating 9 | 5 8 10 11 On Entrance 6 | . 7 9 11 Avg Prop Armor Cover (%) . | . . . . Naked Turns . | . . . . Heaviest Build 31 | 12 28 31 30 Greatest Support 40 | 40 40 40 40 Greatest Overweight (x) 1 | . . . 1 Average Overweight (x) . | . . . . Largest Inventory Capacity 15 | 8 15 15 15 Average Capacity 12 | 7 11 15 15 Most Carried 15 | 3 15 15 15 Average Carried 10 | 2 8 14 14 Final Capacity 15 | 8 15 15 15 Final Carried 15 | 3 13 15 13 Class Distribution -------------------- 100% | Mutant Dominant Class ---------------- Mutant | -10/Materials Mutant | -10/Mines Mutant | -10/Exiles Resources | -11 -10 -10 -10 ----------- Run | Yrd Mat Min Exi Matter Collected 695 | 283 240 172 . Remotely . | . . . . Salvage Created 686 | 109 322 251 4 Parts 48 | 5 24 19 . Haulers Intercepted 1 | . 1 . . Recyclers Shooed . | . . . . Parts Field Recycled . | . . . . Retrieved Matter . | . . . . Parts Self-Destructed . | . . . . Prevented . | . . . . Parts Restored . | . . . . Kills | -11 -10 -10 -10 ------- Run | Yrd Mat Min Exi Combat Hostiles Destroyed 22 | . 8 10 4 Guns 10 | . 5 5 . AOE 12 | . 3 5 4 Classes Destroyed 9 | 2 6 . 1 Builder 1 | . 1 . . Tunneler 2 | 1 1 . . Hauler 1 | . 1 . . Recycler 2 | 1 . 1 . Operator 1 | . 1 . . Watcher 1 | . 1 . . Swarmer 9 | . 3 6 . Grunt 9 | . 5 4 . Assembled 4 | . . . 4 Best Kill Streak 4 | 2 4 4 4 Combat Bots Only 4 | . 3 3 4 Max Kills in Single Turn 4 | 1 3 2 4 Gunslinging 1 | . 1 . . Exploded 4 | . 3 2 4 Melee . | . . . . Uniques/NPCs Destroyed . | . . . . Combat | -11 -10 -10 -10 -------- Run | Yrd Mat Min Exi Hostile Shots Fired 100 | . 39 32 29 Missed 23 | . 9 6 8 Hits 77 | . 30 26 21 Melee 6 | . . . 6 Projectile 71 | . 30 26 15 Critical Strikes 2 | . . . 2 Damage Taken 1212 | . 448 312 452 Core 251 | . 94 61 96 Absorbed by Shields . | . . . . Core Remaining (%) 100 | 100 . . . Volleys Fired 72 | 3 43 22 4 Largest 2 | 2 2 2 2 Hottest 112 | 70 112 50 50 Shots Fired 144 | 6 86 44 8 Gun 135 | 6 84 41 4 Cannon . | . . . . Launcher 7 | . . 3 4 Special 2 | . 2 . . Kinetic 85 | 3 37 41 4 Thermal 52 | 3 49 . . Explosive 7 | . . 3 4 Electromagnetic . | . . . . Robot Hit Streak 7 | 5 7 7 2 Robot Miss Streak 3 | . 3 3 1 Penetration Max . | . . . . Secondary Targets 2 | . 1 1 . Max Gunslinging Chain 1 | . 1 1 . Shots Hit Robots 85 | 5 52 26 2 Core Hits 45 | 3 19 18 5 Critical Kills . | . . . . Critical Parts Destroyed . | . . . . Critical Strikes 2 | 1 1 . . Burn 2 | 1 1 . . Melee Attacks . | . . . . Impact . | . . . . Slashing . | . . . . Piercing . | . . . . Sneak Attacks . | . . . . Combat Hostiles . | . . . . Follow-up Attacks . | . . . . Damage Inflicted 2017 | 55 1030 504 428 Guns 1163 | 55 768 313 27 Cannons . | . . . . Explosions 854 | . 262 191 401 Melee . | . . . . Ramming . | . . . . Kinetic 591 | 19 232 313 27 Thermal 834 | 36 798 . . Explosive 592 | . . 191 401 Electromagnetic . | . . . . Impact . | . . . . Slashing . | . . . . Piercing . | . . . . Highest Corruption 2 | . 2 2 2 Average Corruption 1 | . 1 2 2 Corruption Purged . | . . . . Corruption Blocked . | . . . . Effects 16 | . 7 7 2 Message Errors 1 | . . . 1 Matter Fused 4 | . 2 2 . Heat Flow Errors 2 | . 2 . . Data Loss (minor) 3 | . . 3 . Data Loss (major) 2 | . . 2 . Misfires 4 | . 3 . 1 Overload Shots . | . . . . Overflow Damage 171 | . 109 . 62 Projectiles . | . . . . Explosions 171 | . 109 . 62 Melee . | . . . . Knockbacks . | . . . . Impact . | . . . . Kinetic . | . . . . Secondary . | . . . . Self-Inflicted Damage 153 | . 101 12 40 Shots 3 | . 1 1 1 Rammed . | . . . . Targets Rammed . | . . . . Kicked . | . . . . Crushed . | . . . . Highest Temperature 377 | 30 377 2 . Average Temperature 97 | 18 104 2 . Received Heat Transfer 297 | . 168 129 . Effects 1 | . 1 . . Short Circuit 1 | . 1 . . Siege Activations . | . . . . Martial Activations . | . . . . Shielding Activations . | . . . . Robots Disrupted . | . . . . Combat Hostiles . | . . . . Robots Corrupted . | . . . . Combat Hostiles . | . . . . Parts Fried . | . . . . Impact Corruptions . | . . . . Robots Melted . | . . . . Combat Hostiles . | . . . . Parts Melted 1 | . 1 . . Heat Transferred 1556 | 185 1371 . . Parts Sabotaged . | . . . . Parts Stolen . | . . . . Parts Stripped . | . . . . Power Chain Reactions . | . . . . Alert | -11 -10 -10 -10 ------- Run | Yrd Mat Min Exi Maximum Alert Level . | . . . . Low Security (%) 100 | 100 100 100 . Level 1 . | . . . . Level 2 . | . . . . Level 3 . | . . . . Level 4 . | . . . . Level 5 . | . . . . High Security . | . . . . Max Security . | . . . . Peak Influence 158 | 5 158 127 . Initial 3 | . . 3 . Average 51 | . 55 58 . Influence Increases 624 | 10 347 267 . Destroy 0b10 Robot/C 360 | . 160 200 . Destroy 0b10 Robot/NC 40 | 10 25 5 . Destroy Leader 74 | . 34 40 . Successful Hack 36 | . 36 . . Disable Machine 45 | . 45 . . Destroy Structure 69 | . 47 22 . Influence Decreases 624 | 10 338 199 77 Entered New Map 83 | . . 6 77 Time Decay 511 | 10 308 193 . Lost Part 30 | . 30 . . Squads Dispatched 1 | . 1 . . Investigation 1 | . 1 . . Extermination . | . . . . Reinforcement . | . . . . Assault . | . . . . Garrison . | . . . . Intercept . | . . . . Searches Triggered . | . . . . Construction Impeded . | . . . . Haulers Reinforced . | . . . . Active Scanning Responses . | . . . . Cargo Convoy Interrupts . | . . . . Stealth | -11 -10 -10 -10 --------- Run | Yrd Mat Min Exi Distress Signals 2 | . 2 . . Communications Jammed . | . . . . Distress Signals . | . . . . Times Spotted 32 | . 14 9 9 Peak Tracking Total 11 | . 5 3 11 Tactical Retreats . | . . . . Traps | -11 -10 -10 -10 ------- Run | Yrd Mat Min Exi Traps Triggered . | . . . . Indirectly . | . . . . Trap Hack Attempts . | . . . . Triggered . | . . . . Disarmed . | . . . . Reprogrammed . | . . . . Reused . | . . . . Traps Extracted . | . . . . Installed . | . . . . Triggered . | . . . . Machines | -11 -10 -10 -10 ---------- Run | Yrd Mat Min Exi Machines Disabled 5 | . 3 . 2 Max in Single Turn 2 | . 2 . 2 Machines Repaired . | . . . . Machines Dismantled . | . . . . Machines Sabotaged . | . . . . Overloaded Fab Kills . | . . . . Hacking | -11 -10 -10 -10 --------- Run | Yrd Mat Min Exi Machines Accessed 8 | . 8 . . Terminals 6 | . 6 . . Fabricators . | . . . . Repair Stations . | . . . . Recycling Units 2 | . 2 . . Scanalyzers . | . . . . Garrison Access . | . . . . Total Hacks 22 | . 22 . . Successful 9 | . 9 . . Failed 13 | . 13 . . Catastrophic 2 | . 2 . . Database Lockouts . | . . . . Manual 5 | . 5 . . Terminals 20 | . 20 . . Fabricators . | . . . . Repair Stations . | . . . . Recycling Units 2 | . 2 . . Scanalyzers . | . . . . Garrison Access . | . . . . Terminal Hacks 7 | . 7 . . Record 1 | . 1 . . Prototype ID Bank 2 | . 2 . . Branch Access Points 1 | . 1 . . Hauler Manifests 1 | . 1 . . Zone Layout 2 | . 2 . . Fabricator Hacks . | . . . . Repair Station Hacks . | . . . . Recycling Unit Hacks 2 | . 2 . . Retrieve Components 2 | . 2 . . Scanalyzer . | . . . . Garrison Access Hacks . | . . . . Unauthorized Hacks . | . . . . Terminals . | . . . . Fabricators . | . . . . Repair Stations . | . . . . Recycling Units . | . . . . Scanalyzers . | . . . . Garrison Access . | . . . . Data Cores Recovered 1 | . 1 . . Used . | . . . . Hacking Detections 6 | . 6 . . Full Trace Events 2 | . 2 . . Feedback Events 2 | . 2 . . Corruption 2 | . 2 . . Feedback Blocked . | . . . . Robot Schematics Acquired . | . . . . Robots Built . | . . . . Authchips . | . . . . Time . | . . . . Total Robot Build Rating . | . . . . Part Schematics Acquired . | . . . . Parts Built . | . . . . Authchips . | . . . . Time . | . . . . Total Part Build Rating . | . . . . Part Studies Acquired . | . . . . Parts Repaired . | . . . . Time . | . . . . Parts Recycled . | . . . . Recycled Matter . | . . . . Retrieved Matter . | . . . . Retrieved Components 9 | . 9 . . Parts Scanalyzed . | . . . . Part Schematics Acquired . | . . . . Parts Damaged . | . . . . Bothacking | -11 -10 -10 -10 ------------ Run | Yrd Mat Min Exi Used RIF Installer . | . . . . Robots Hacked . | . . . . Non-combat . | . . . . Combat . | . . . . Robot Hacks Applied . | . . . . Relay Couplers Released . | . . . . Fabnet Peak Effective % . | . . . . Robots Rewired . | . . . . Allies Hacked . | . . . . Hacks Repelled . | . . . . Allies | -11 -10 -10 -10 -------- Run | Yrd Mat Min Exi Total Allies . | . . . . Largest Group . | . . . . Highest-Rated Group . | . . . . Highest-Rated Ally . | . . . . Total Orders . | . . . . Ally Attacks . | . . . . Total Damage . | . . . . Kills . | . . . . Allies Corrupted . | . . . . Allies Melted . | . . . . Intel | -11 -10 -10 -10 ------- Run | Yrd Mat Min Exi Active Infowar (turns) 1251 | 16 679 419 137 Terrain 161 | . 161 . . Seismic 1090 | 16 518 419 137 Robot Analysis Total . | . . . . Derelict Logs Recovered . | . . . . Drone Launches . | . . . . Drone Recoveries . | . . . . Exploration | -11 -10 -10 -10 ------------- Run | Yrd Mat Min Exi Turns Passed 1569 | 117 822 493 137 Spaces Moved 771 | 61 404 234 72 Core 3 | 3 . . . Treads 768 | 58 404 234 72 Legs . | . . . . Wheels . | . . . . Hover . | . . . . Flight . | . . . . Fastest Speed 50 | 50 160 160 160 Average Speed 159 | 154 160 160 161 Slowest Speed 240 | 160 160 160 240 Overloaded Moves . | . . . . Propulsion Burnouts . | . . . . Robots Hopped . | . . . . Potential Cave-ins . | . . . . Cave-ins Triggered . | . . . . Exploration Rate (%) 35 | 5 76 37 24 Regions Visited 3 Branch Regions 2 Pre-discovered Areas . | . . . . Known Exits Taken 1 | . 1 . . Unknown Exits Taken 2 | 1 . 1 . Scrap Searched . | . . . . Spaces Dug 1 | . 1 . . Terrain Destroyed 88 | . 64 24 . Melee . | . . . . Projectile 1 | . 1 . . AOE 87 | . 63 24 . Terrain Rammed . | . . . . Walls Destroyed . | . . . . Machines Disabled . | . . . . Actions | -11 -10 -10 -10 --------- Run | Yrd Mat Min Exi Total 962 | 74 495 306 87 Wait 53 | . 14 39 . Move 768 | 60 403 233 72 Hop . | . . . . Pick Up 21 | 3 12 3 3 Fast Attach 11 | 7 4 . . Attach 4 | . 3 . 1 Detach 2 | . 2 . . Swap 17 | 1 7 7 2 Drop 13 | . 7 2 4 Fire 72 | 3 43 22 4 Melee . | . . . . Ram . | . . . . Kick . | . . . . Crush . | . . . . Escape Stasis . | . . . . Rewire 1 | . . . 1 Trap . | . . . . Miscellaneous . | . . . . Route ------- -11/Scrapyard -10/Materials (discovered 3 exits: [*Mat x2] / *Min) -10/Mines -10/Exiles History --------- Turn | Location | Event 15 | -11/Scrapyard | Discovered new exit (range 16) 118 | -11/Scrapyard | Entered Materials 296 | -10/Materials | Lost 3 parts (1p1u1w) 301 | -10/Materials | Build established: Mutant 483 | -10/Materials | Discovered new exit (range 15) 514 | -10/Materials | Discovered new exit (range 15) 863 | -10/Materials | Identified exit to Mines 863 | -10/Materials | Discovered new exit (range 15) 940 | -10/Materials | Entered Mines 1103 | -10/Mines | Core integrity fell below 50% 1425 | -10/Mines | Deemed a non-threat by the Exiles lab entrance 1426 | -10/Mines | Discovered new exit (range 5) 1433 | -10/Mines | Entered Exiles 1479 | -10/Exiles | Met 8R-AWN 1511 | -10/Exiles | Met EX-HEX 1553 | -10/Exiles | Attacked by the Exiles 1561 | -10/Exiles | Core integrity fell below 20% 1570 | -10/Exiles | Destroyed by as-65750 with Assembled Heavy Rifle Last Messages --------------- 01562_ as-96830 destroyed. 01562_ Destroyed Asb. Hover Unit. 01562_ as-29710 destroyed. 01562_ Destroyed Asb. Hover Unit. 01562_ Destroyed Asb. F-torch. 01562_ as-48506 destroyed. 01562_ as-33586 destroyed. 01564_ Assault Rifle destroyed. 01564_ Penetrated by HV Slug. 01564_ Lgt. Nuclear Core destroyed. 01564_ Penetrated by HV Slug. 01568_ Dropped Rigged Nuclear Core. 01568_ Lgt. Treads destroyed. 01568_ Grenade Launcher destroyed. 01568_ Machine disabled. 01569_ Penetrated by HV Slug. 01569_ Critical hit (Destroy). 01569_ Assault Rifle destroyed. 01569_ HV Slug penetrates Machine. [Achievement: Deductive Reasoning] Map ----- +----------------------------------------------------+ | ?????????????????????????????????????????????????? | | ?????????????????????????????????????????????????? | | ?????????????????????????????????????????????????? | | ?????????????????????????????????????????????????? | | ?????????????????????????????????????????????????? | | ?????????????????????????????????????????????????? | | ?????????????????????????????????????????????????? | | ?????????????????????????????????????????????????? | | ?????????????????????????????????????????????????? | | ?????????????????????????????????????????????????? | | ?????????????????????????????????????????????????? | | ?????????????????????????????????????????????????? | | ?????????????????????????????????????????????????? | | ?????????????????????????????????????????????????? | | ?????????????????????????????????????????????????? | | ?????????????????????????????????????????????????? | | ?????????????????????????????????????????????????? | | ?????????????????????????????????????????????????? | | ???????????? ?????###########??????????????????? | | ???????????? #####"""""""""##?????????????????? | | ???????????? " "" """##????????????????? | | ??????????? z "" " #????????????????? | | ??????????? """#????????????????? | | ?????????? "a"#???????????#####? | | ?????????? " "##?????????##" #? | | ?????????? @ ""###???????#" #? | | ???????????" *% """#??????##" ## | | ????????????"" a "#????### # | | ????????????###""" ##???# | | ???????????????#""" ##?## | | ???????????????#"""" ### | | ???????????????#"" g ## | | ??????????????#"""" #### | | ?????????????"" ""#?#""" | | ????????????" #"""##?#### | | ??????????? ######?????? | | ???????????? a ##??????????? | | ???????????? a ##???????????? | | ???????????? "" " ""#????????????? | | ??????????????""" " " ""#" "##????????????? | | ??????????????####""" """##"""""""##?????????????? | | ?????????????????###""""#?#########??????????????? | | ???????????????????####??????????????????????????? | | ?????????????????????????????????????????????????? | | ?????????????????????????????????????????????????? | | ?????????????????????????????????????????????????? | | ?????????????????????????????????????????????????? | | ?????????????????????????????????????????????????? | | ?????????????????????????????????????????????????? | | ?????????????????????????????????????????????????? | +----------------------------------------------------+ Best States ------------- Heat Dissipation 35 Energy Generation 14 Energy Capacity 250 Matter Stores 300 Matter Capacity 300 Sight Range 16 Terrain Scan Range 14 Terrain Scan Density 10 Evasion (%) 40 Recoil Reduction 2 Item Schematics ----------------- None Robot Schematics ------------------ None Fabricated ------------ Nothing Repaired ---------- Nothing Studied --------- None Alien Tech Used ----------------- None Achievements -------------- Deductive Reasoning Overwhelming Challenges ------------ None Game ------ Seed ShrapnelPotentialBeamcaster Manual? 0 Play Time 00:28:44 Cumulative 34.3 hours Start 2025.11.01 @ 19:11:34 End 2025.11.01 @ 19:49:21 Sessions 1 Manual Loads 0 Difficulty Rogue Special Mode None Game No. 20 Rogue 20 Adventurer 0 Explorer 0 Win Type - Total 0 Types 0/0/0/0/0/0/0/0/0/0 Lore% 15 Gallery% 26 Achievement% 17 Wizard Run 0 Options --------- Layout 2 ASCII 0 Keyboard 0 Movement Mouse Keybinds 0 Fullscreen 1 Font 24/Smallcaps Map View 50x44 Zoom Use 0% Tactical HUD 1 Map Filters NONE Filters NONE Steam 1 RUN: c7f8d625-717f-4b0e-b6a1-cff6086876da